[Event "*** Titled Tuesday Blitz"]
[Site "Chess.com"]
[Date "2020.04.14"]
[Round "7"]
[White "WhiteKnight2612"]
[Black "Gahan-MG"]
[Result "0-1"]
[WhiteElo "2684"]
[BlackElo "2543"]
[TimeControl "180+1"]
[EndTime "11:15:47 PDT"]
[Termination "Gahan-MG won by checkmate"]

1. Nf3 {[%clk 0:03:00.9]} 1... Nf6 {[%clk 0:02:59.5]} 2. g3 {[%clk 0:03:01.3]}
2... g6 {[%clk 0:02:59.6]} 3. Bg2 {[%clk 0:03:01.8]} 3... Bg7 {[%clk 0:03:00.1]}
4. O-O {[%clk 0:03:02.3]} 4... O-O {[%clk 0:03:00.7]} 5. d4 {[%clk 0:03:02.7]}
5... d5 {[%clk 0:03:01.6]} 6. c4 {[%clk 0:03:02.9]} 6... Nc6 {[%clk 0:03:01.7]}
7. Nc3 {[%clk 0:03:00.5]} 7... dxc4 {[%clk 0:03:01.8]} 8. d5 {[%clk 0:03:00.8]}
8... Na5 {[%clk 0:02:57.4]} 9. e4 {[%clk 0:03:00.4]} 9... c6 {[%clk 0:02:57.8]}
10. Bf4 {[%clk 0:02:48.5]} 10... cxd5 {[%clk 0:02:55]} 11. exd5 {[%clk
0:02:49.4]} 11... Nh5 {[%clk 0:02:53.1]} 12. Bd2 {[%clk 0:02:48.1]} 12... b6
{[%clk 0:02:47]} 13. Re1 {[%clk 0:02:43.7]} 13... Nb7 {[%clk 0:02:37]} 14. Bg5
{[%clk 0:02:37.1]} 14... Re8 {[%clk 0:02:36.2]} 15. Qe2 {[%clk 0:02:36.9]} 15...
Nd6 {[%clk 0:02:11.7]} 16. Rad1 {[%clk 0:02:07.2]} 16... Bf5 {[%clk 0:02:06.4]}
17. Nd4 {[%clk 0:01:58]} 17... Bd3 {[%clk 0:02:03.1]} 18. Qg4 {[%clk 0:01:58.2]}
18... Qc8 {[%clk 0:01:53.1]} 19. Qh4 {[%clk 0:01:53.2]} 19... Nf6 {[%clk
0:01:38.7]} 20. Nc6 {[%clk 0:01:51.6]} 20... Nf5 {[%clk 0:01:37.4]} 21. Qh3
{[%clk 0:01:26.3]} 21... h6 {[%clk 0:01:21.4]} 22. Bc1 {[%clk 0:01:25.9]} 22...
Bf8 {[%clk 0:01:14.3]} 23. g4 {[%clk 0:01:11.5]} 23... Nd6 {[%clk 0:01:12.5]}
24. f3 {[%clk 0:00:41.3]} 24... h5 {[%clk 0:01:10.9]} 25. Bg5 {[%clk 0:00:31.1]}
25... hxg4 {[%clk 0:01:08.3]} 26. Qg3 {[%clk 0:00:28.9]} 26... Nf5 {[%clk
0:01:03.1]} 27. Qf4 {[%clk 0:00:28.2]} 27... gxf3 {[%clk 0:00:40.4]} 28. Bxf3
{[%clk 0:00:29.1]} 28... Qd7 {[%clk 0:00:28.5]} 29. Ne5 {[%clk 0:00:27.3]} 29...
Qd6 {[%clk 0:00:27.1]} 30. Nxd3 {[%clk 0:00:26.5]} 30... cxd3 {[%clk 0:00:26.5]}
31. Rxd3 {[%clk 0:00:27.4]} 31... Qxf4 {[%clk 0:00:26.2]} 32. Bxf4 {[%clk
0:00:28.3]} 32... Red8 {[%clk 0:00:23.1]} 33. Red1 {[%clk 0:00:28]} 33... Rac8
{[%clk 0:00:22.9]} 34. Nb5 {[%clk 0:00:28]} 34... a6 {[%clk 0:00:21.8]} 35. Nc7
{[%clk 0:00:24.3]} 35... g5 {[%clk 0:00:19.7]} 36. Be5 {[%clk 0:00:18.9]} 36...
Nd7 {[%clk 0:00:20]} 37. Bg4 {[%clk 0:00:05.6]} 37... Nxe5 {[%clk 0:00:19.1]}
38. Bxf5 {[%clk 0:00:05.7]} 38... Rxc7 {[%clk 0:00:19.5]} 39. Rg3 {[%clk
0:00:05.2]} 39... f6 {[%clk 0:00:19.5]} 40. h4 {[%clk 0:00:05.5]} 40... Bh6
{[%clk 0:00:19.2]} 41. Be6+ {[%clk 0:00:06.4]} 41... Kg7 {[%clk 0:00:19.3]} 42.
Rd2 {[%clk 0:00:06.6]} 42... Rd6 {[%clk 0:00:19.2]} 43. Rh2 {[%clk 0:00:05.5]}
43... Rc1+ {[%clk 0:00:19]} 44. Kg2 {[%clk 0:00:05.5]} 44... Rc2+ {[%clk
0:00:19.5]} 45. Kh3 {[%clk 0:00:06.3]} 45... Rxh2+ {[%clk 0:00:19.8]} 46. Kxh2
{[%clk 0:00:06.7]} 46... Rd8 {[%clk 0:00:19.7]} 47. hxg5 {[%clk 0:00:07.2]}
47... Bxg5 {[%clk 0:00:19.8]} 48. Rc3 {[%clk 0:00:07.3]} 48... b5 {[%clk
0:00:19.3]} 49. Rc7 {[%clk 0:00:06.3]} 49... Rh8+ {[%clk 0:00:18]} 50. Kg2
{[%clk 0:00:04.5]} 50... Ng6 {[%clk 0:00:17.5]} 51. Ra7 {[%clk 0:00:03.4]} 51...
Nf4+ {[%clk 0:00:17.7]} 52. Kf3 {[%clk 0:00:04.3]} 52... Nxe6 {[%clk 0:00:18.1]}
53. dxe6 {[%clk 0:00:05.2]} 53... f5 {[%clk 0:00:17.7]} 54. Rxa6 {[%clk
0:00:05.2]} 54... Kf6 {[%clk 0:00:18.3]} 55. b3 {[%clk 0:00:06.1]} 55... Rh2
{[%clk 0:00:17.9]} 56. Rb6 {[%clk 0:00:07]} 56... Rxa2 {[%clk 0:00:17.2]} 57.
Rxb5 {[%clk 0:00:07.9]} 57... Kxe6 {[%clk 0:00:17.2]} 58. b4 {[%clk 0:00:08.8]}
58... Kf6 {[%clk 0:00:17.3]} 59. Rb6+ {[%clk 0:00:09.7]} 59... e6 {[%clk
0:00:17.7]} 60. b5 {[%clk 0:00:09.3]} 60... Ra3+ {[%clk 0:00:18.3]} 61. Kg2
{[%clk 0:00:09.9]} 61... Rb3 {[%clk 0:00:18.5]} 62. Rc6 {[%clk 0:00:10.6]} 62...
Rxb5 {[%clk 0:00:17.9]} 63. Rc8 {[%clk 0:00:10.2]} 63... Rb2+ {[%clk 0:00:18]}
64. Kf3 {[%clk 0:00:09.8]} 64... Rb3+ {[%clk 0:00:18.6]} 65. Kg2 {[%clk
0:00:09.2]} 65... Bf4 {[%clk 0:00:19]} 66. Rg8 {[%clk 0:00:08.5]} 66... Ke5
{[%clk 0:00:19.1]} 67. Rf8 {[%clk 0:00:09.4]} 67... Ke4 {[%clk 0:00:18.9]} 68.
Rg8 {[%clk 0:00:09.7]} 68... Rb2+ {[%clk 0:00:19.2]} 69. Kh3 {[%clk 0:00:07.9]}
69... Rh2# {[%clk 0:00:18.7]} 0-1

[Event "*** Titled Tuesday Blitz"]
[Site "Chess.com"]
[Date "2020.04.14"]
[Round "7"]
[White "albano87"]
[Black "avantage_ru"]
[Result "1-0"]
[WhiteElo "2214"]
[BlackElo "2529"]
[TimeControl "180+1"]
[EndTime "11:15:48 PDT"]
[Termination "albano87 won by resignation"]

1. d4 {[%clk 0:03:00.9]} 1... Nf6 {[%clk 0:02:59.1]} 2. Nf3 {[%clk 0:03:00.2]}
2... g6 {[%clk 0:02:59]} 3. g3 {[%clk 0:03:00.4]} 3... Bg7 {[%clk 0:02:59]} 4.
Bg2 {[%clk 0:03:01]} 4... c5 {[%clk 0:02:59.4]} 5. O-O {[%clk 0:03:01.9]} 5...
cxd4 {[%clk 0:02:58.7]} 6. Nxd4 {[%clk 0:03:01.7]} 6... Nc6 {[%clk 0:02:58.8]}
7. c4 {[%clk 0:03:01.1]} 7... O-O {[%clk 0:02:58.8]} 8. Nc3 {[%clk 0:03:01.1]}
8... d6 {[%clk 0:02:59]} 9. h3 {[%clk 0:02:44.6]} 9... Bd7 {[%clk 0:02:52.8]}
10. Be3 {[%clk 0:02:43.3]} 10... a6 {[%clk 0:02:41.4]} 11. Qd2 {[%clk
0:02:37.6]} 11... Rb8 {[%clk 0:02:36.2]} 12. Rac1 {[%clk 0:02:34.9]} 12... Re8
{[%clk 0:02:27.1]} 13. Nd5 {[%clk 0:02:29.3]} 13... Ne5 {[%clk 0:02:05]} 14. Kh2
{[%clk 0:02:04.1]} 14... b5 {[%clk 0:01:57.5]} 15. Nxf6+ {[%clk 0:01:57]} 15...
Bxf6 {[%clk 0:01:56.5]} 16. cxb5 {[%clk 0:01:57.9]} 16... axb5 {[%clk
0:01:55.5]} 17. b3 {[%clk 0:01:58]} 17... h5 {[%clk 0:01:25.4]} 18. f4 {[%clk
0:01:54]} 18... h4 {[%clk 0:01:25.6]} 19. fxe5 {[%clk 0:01:49.8]} 19... hxg3+
{[%clk 0:01:25.8]} 20. Kxg3 {[%clk 0:01:28.2]} 20... Bxe5+ {[%clk 0:01:24.2]}
21. Kf2 {[%clk 0:01:24.9]} 21... e6 {[%clk 0:01:21.7]} 22. Kg1 {[%clk
0:01:20.7]} 22... d5 {[%clk 0:01:16.3]} 23. Bf4 {[%clk 0:01:17.4]} 23... Qf6
{[%clk 0:01:03.5]} 24. Bxe5 {[%clk 0:01:15.6]} 24... Qxe5 {[%clk 0:01:04.4]} 25.
Qf4 {[%clk 0:01:16.1]} 25... Qg7 {[%clk 0:01:04.2]} 26. Nc6 {[%clk 0:01:02.5]}
26... Bxc6 {[%clk 0:01:01.8]} 27. Rxc6 {[%clk 0:01:03.4]} 27... Rb7 {[%clk
0:00:57.9]} 28. e4 {[%clk 0:00:55.9]} 28... dxe4 {[%clk 0:00:52.8]} 29. Qxe4
{[%clk 0:00:51.5]} 29... Ra7 {[%clk 0:00:51.1]} 30. Rc2 {[%clk 0:00:46.1]} 30...
Rea8 {[%clk 0:00:48.8]} 31. Rcf2 {[%clk 0:00:44.3]} 31... Rd8 {[%clk 0:00:44]}
32. Qh4 {[%clk 0:00:39.1]} 32... Rd4 {[%clk 0:00:40.6]} 33. Qf6 {[%clk
0:00:38.1]} 33... Qxf6 {[%clk 0:00:39.2]} 34. Rxf6 {[%clk 0:00:39]} 34... b4
{[%clk 0:00:37.7]} 35. Bc6 {[%clk 0:00:37.8]} 35... Rd8 {[%clk 0:00:28]} 36. Bb5
{[%clk 0:00:32.8]} 36... Kg7 {[%clk 0:00:26.5]} 37. Bc4 {[%clk 0:00:31.6]} 37...
Rd2 {[%clk 0:00:25.8]} 38. R1f2 {[%clk 0:00:28.4]} 38... Rxf2 {[%clk 0:00:24]}
39. Rxf2 {[%clk 0:00:29.3]} 39... Rd7 {[%clk 0:00:23.9]} 40. Kf1 {[%clk
0:00:27.3]} 40... Rd6 {[%clk 0:00:23.9]} 41. Ke1 {[%clk 0:00:27.4]} 41... f5
{[%clk 0:00:23.8]} 42. Rd2 {[%clk 0:00:27.4]} 42... Rb6 {[%clk 0:00:24]} 43. Rd8
{[%clk 0:00:20.8]} 43... Kf6 {[%clk 0:00:23.8]} 44. Ke2 {[%clk 0:00:20.4]} 44...
e5 {[%clk 0:00:23.8]} 45. Rg8 {[%clk 0:00:19.6]} 45... Rb7 {[%clk 0:00:20.9]}
46. Rd8 {[%clk 0:00:17.2]} 46... Ra7 {[%clk 0:00:20]} 47. Rb8 {[%clk 0:00:15.9]}
47... Rxa2+ {[%clk 0:00:19.1]} 48. Ke1 {[%clk 0:00:16.2]} 48... Rh2 {[%clk
0:00:18.2]} 49. Rxb4 {[%clk 0:00:16.8]} 49... Rxh3 {[%clk 0:00:17.7]} 50. Rb6+
{[%clk 0:00:17.7]} 50... Kg5 {[%clk 0:00:17.7]} 51. Bf7 {[%clk 0:00:18.2]} 51...
Kf4 {[%clk 0:00:17.9]} 52. Rxg6 {[%clk 0:00:17.1]} 52... e4 {[%clk 0:00:17.5]}
53. Rf6 {[%clk 0:00:16.1]} 53... Ke5 {[%clk 0:00:15.5]} 54. Re6+ {[%clk
0:00:15.9]} 54... Kd4 {[%clk 0:00:15.7]} 55. Rc6 {[%clk 0:00:15.2]} 55... f4
{[%clk 0:00:14.9]} 56. b4 {[%clk 0:00:13.4]} 56... Kd3 {[%clk 0:00:13.6]} 57.
Bc4+ {[%clk 0:00:12.5]} 57... Ke3 {[%clk 0:00:13.7]} 58. b5 {[%clk 0:00:13]}
58... f3 {[%clk 0:00:13.7]} 59. Bf1 {[%clk 0:00:06.4]} 59... Rh2 {[%clk
0:00:12.5]} 60. Rc3+ {[%clk 0:00:05]} 60... Kf4 {[%clk 0:00:11.7]} 61. Rb3
{[%clk 0:00:05.6]} 61... e3 {[%clk 0:00:11.5]} 62. b6 {[%clk 0:00:06]} 62... Rh8
{[%clk 0:00:10]} 63. b7 {[%clk 0:00:05.9]} 63... Rb8 {[%clk 0:00:10.9]} 64. Ba6
{[%clk 0:00:05.4]} 64... Ke4 {[%clk 0:00:09.9]} 65. Rb4+ {[%clk 0:00:05.4]}
65... Ke5 {[%clk 0:00:09.2]} 66. Rc4 {[%clk 0:00:05.4]} 66... Kd5 {[%clk
0:00:09.1]} 67. Rc8 {[%clk 0:00:05.6]} 1-0

[Event "*** Titled Tuesday Blitz"]
[Site "Chess.com"]
[Date "2020.04.14"]
[Round "7"]
[White "TranJMinh"]
[Black "Fandorine"]
[Result "0-1"]
[WhiteElo "2776"]
[BlackElo "2919"]
[TimeControl "180+1"]
[EndTime "11:15:49 PDT"]
[Termination "Fandorine won on time"]

1. d4 {[%clk 0:03:00.9]} 1... Nf6 {[%clk 0:03:00]} 2. c4 {[%clk 0:02:59.8]} 2...
g6 {[%clk 0:03:00.1]} 3. Nc3 {[%clk 0:03:00.4]} 3... d5 {[%clk 0:03:00.6]} 4.
Bg5 {[%clk 0:03:00.8]} 4... Bg7 {[%clk 0:03:00.5]} 5. Bxf6 {[%clk 0:03:01.1]}
5... Bxf6 {[%clk 0:03:01.1]} 6. cxd5 {[%clk 0:03:01.9]} 6... c6 {[%clk
0:03:01.2]} 7. e4 {[%clk 0:03:02.6]} 7... O-O {[%clk 0:02:59.8]} 8. Bc4 {[%clk
0:03:00.2]} 8... Bg7 {[%clk 0:02:51.1]} 9. Nge2 {[%clk 0:02:59.9]} 9... cxd5
{[%clk 0:02:00.7]} 10. exd5 {[%clk 0:02:56.8]} 10... Nd7 {[%clk 0:01:58.6]} 11.
O-O {[%clk 0:02:50.3]} 11... Nb6 {[%clk 0:01:46.8]} 12. Bb3 {[%clk 0:02:50.5]}
12... Bg4 {[%clk 0:01:46.3]} 13. Re1 {[%clk 0:02:41.2]} 13... Rc8 {[%clk
0:01:38.2]} 14. f3 {[%clk 0:02:37.9]} 14... Bf5 {[%clk 0:01:35]} 15. Ng3 {[%clk
0:02:37.5]} 15... Bd7 {[%clk 0:01:32.9]} 16. Qd3 {[%clk 0:02:30.2]} 16... a6
{[%clk 0:01:11.2]} 17. Rad1 {[%clk 0:02:26.9]} 17... Rc7 {[%clk 0:01:10.5]} 18.
Nge4 {[%clk 0:02:23.7]} 18... Bf5 {[%clk 0:01:07.5]} 19. Qe2 {[%clk 0:02:18.8]}
19... Nc8 {[%clk 0:01:05.8]} 20. Ng3 {[%clk 0:02:08.7]} 20... Nd6 {[%clk
0:01:01.5]} 21. Qf2 {[%clk 0:01:59.6]} 21... Bc8 {[%clk 0:00:59.5]} 22. Nge4
{[%clk 0:01:55.4]} 22... b5 {[%clk 0:00:55]} 23. Nc5 {[%clk 0:01:52.1]} 23...
Kh8 {[%clk 0:00:40.1]} 24. g4 {[%clk 0:01:45.8]} 24... b4 {[%clk 0:00:28]} 25.
Ne2 {[%clk 0:01:20]} 25... Nb5 {[%clk 0:00:20.4]} 26. h3 {[%clk 0:00:53.6]}
26... a5 {[%clk 0:00:14.9]} 27. Kg2 {[%clk 0:00:48.2]} 27... Qd6 {[%clk
0:00:12.7]} 28. Ne4 {[%clk 0:00:44.6]} 28... Qb6 {[%clk 0:00:12.6]} 29. Rd2
{[%clk 0:00:37.4]} 29... Qa7 {[%clk 0:00:09.3]} 30. Red1 {[%clk 0:00:32.8]}
30... a4 {[%clk 0:00:09.2]} 31. Bc2 {[%clk 0:00:33.3]} 31... a3 {[%clk
0:00:08.3]} 32. bxa3 {[%clk 0:00:27.3]} 32... bxa3 {[%clk 0:00:05.3]} 33. Bb3
{[%clk 0:00:28.2]} 33... Bb7 {[%clk 0:00:05.3]} 34. h4 {[%clk 0:00:13.3]} 34...
Nd6 {[%clk 0:00:05.5]} 35. h5 {[%clk 0:00:12.8]} 35... f5 {[%clk 0:00:04.8]} 36.
Ng5 {[%clk 0:00:06.4]} 36... fxg4 {[%clk 0:00:04.8]} 37. f4 {[%clk 0:00:06]}
37... h6 {[%clk 0:00:03.1]} 38. hxg6 {[%clk 0:00:05.5]} 38... Nf5 {[%clk
0:00:02.4]} 39. Ne6 {[%clk 0:00:03.8]} 39... Qb8 {[%clk 0:00:02.6]} 40. Ng3
{[%clk 0:00:02.5]} 40... Rd7 {[%clk 0:00:02.7]} 41. Nxf8 {[%clk 0:00:01.7]}
41... Qxf8 {[%clk 0:00:03.6]} 42. Nxf5 {[%clk 0:00:02.1]} 42... Qxf5 {[%clk
0:00:04.5]} 43. Kg3 {[%clk 0:00:02]} 43... Bxd5 {[%clk 0:00:04.7]} 44. Bxd5
{[%clk 0:00:02.9]} 44... Rxd5 {[%clk 0:00:04.5]} 45. Qe2 {[%clk 0:00:03.4]}
45... e6 {[%clk 0:00:04.2]} 46. Qxg4 {[%clk 0:00:03.9]} 46... Qf6 {[%clk
0:00:04.8]} 47. Rd3 {[%clk 0:00:04.3]} 47... Rf5 {[%clk 0:00:04.8]} 48. d5
{[%clk 0:00:04.3]} 48... e5 {[%clk 0:00:04.9]} 49. d6 {[%clk 0:00:03.6]} 49...
Rxf4 {[%clk 0:00:04.4]} 50. Qh3 {[%clk 0:00:03.3]} 50... Qg5+ {[%clk 0:00:03.6]}
51. Kh2 {[%clk 0:00:03.9]} 51... Rh4 {[%clk 0:00:03.9]} 52. d7 {[%clk
0:00:04.8]} 52... Rxh3+ {[%clk 0:00:04.2]} 53. Kxh3 {[%clk 0:00:02.8]} 53... Bf6
{[%clk 0:00:04.5]} 54. d8=Q+ {[%clk 0:00:02.7]} 54... Bxd8 {[%clk 0:00:04.8]}
55. Rxd8+ {[%clk 0:00:03.6]} 55... Kg7 {[%clk 0:00:05.7]} 56. R1d6 {[%clk
0:00:03.4]} 56... Qf5+ {[%clk 0:00:05.3]} 57. Kg3 {[%clk 0:00:04.3]} 57... Qg5+
{[%clk 0:00:05.7]} 58. Kf3 {[%clk 0:00:05.2]} 58... Qf4+ {[%clk 0:00:06.1]} 59.
Ke2 {[%clk 0:00:05.7]} 59... h5 {[%clk 0:00:06.6]} 60. R8d7+ {[%clk 0:00:05.7]}
60... Kg8 {[%clk 0:00:06.7]} 61. Rd8+ {[%clk 0:00:05.7]} 61... Kg7 {[%clk
0:00:07.2]} 62. R8d7+ {[%clk 0:00:06.6]} 62... Kh6 {[%clk 0:00:04.3]} 63. Rh7+
{[%clk 0:00:05.2]} 63... Kg5 {[%clk 0:00:04.5]} 64. Rf7 {[%clk 0:00:03.6]} 64...
Qc4+ {[%clk 0:00:04]} 65. Kf2 {[%clk 0:00:02.4]} 65... Qc5+ {[%clk 0:00:03.9]}
66. Kf3 {[%clk 0:00:01.8]} 66... Qxd6 {[%clk 0:00:04.2]} 67. g7 {[%clk
0:00:02.7]} 67... Qd5+ {[%clk 0:00:04.7]} 68. Kg3 {[%clk 0:00:01.8]} 68... Qxf7
{[%clk 0:00:05.4]} 69. Kh3 {[%clk 0:00:02.5]} 69... Qg8 {[%clk 0:00:06]} 0-1

[Event "*** Titled Tuesday Blitz"]
[Site "Chess.com"]
[Date "2020.04.14"]
[Round "7"]
[White "ristingho"]
[Black "Vesper2018"]
[Result "1/2-1/2"]
[WhiteElo "2460"]
[BlackElo "1878"]
[TimeControl "180+1"]
[EndTime "11:15:51 PDT"]
[Termination "Game drawn - insufficient material"]

1. d4 {[%clk 0:03:00.9]} 1... Nf6 {[%clk 0:02:59.5]} 2. c4 {[%clk 0:02:56.2]}
2... g6 {[%clk 0:02:59.1]} 3. Nc3 {[%clk 0:02:53.9]} 3... Bg7 {[%clk 0:02:58.6]}
4. e4 {[%clk 0:02:53.5]} 4... d6 {[%clk 0:02:58.6]} 5. h3 {[%clk 0:02:53.6]}
5... O-O {[%clk 0:02:58.4]} 6. Be3 {[%clk 0:02:54.2]} 6... e5 {[%clk 0:02:56.6]}
7. d5 {[%clk 0:02:54.5]} 7... Na6 {[%clk 0:02:53]} 8. g4 {[%clk 0:02:54.3]} 8...
c6 {[%clk 0:02:52.5]} 9. Nge2 {[%clk 0:02:52.9]} 9... cxd5 {[%clk 0:02:49.4]}
10. cxd5 {[%clk 0:02:52.9]} 10... Nc5 {[%clk 0:02:49.6]} 11. Ng3 {[%clk
0:02:52.9]} 11... Bd7 {[%clk 0:02:42.8]} 12. Qd2 {[%clk 0:02:48.4]} 12... a5
{[%clk 0:02:38.7]} 13. f3 {[%clk 0:02:45.2]} 13... b5 {[%clk 0:02:29.7]} 14. Rc1
{[%clk 0:02:41.4]} 14... b4 {[%clk 0:02:27.4]} 15. Nd1 {[%clk 0:02:40.7]} 15...
Rc8 {[%clk 0:02:26.3]} 16. Be2 {[%clk 0:02:36.6]} 16... Ne8 {[%clk 0:02:20.3]}
17. h4 {[%clk 0:02:36.4]} 17... f5 {[%clk 0:02:18.6]} 18. gxf5 {[%clk
0:02:21.5]} 18... gxf5 {[%clk 0:02:17.9]} 19. exf5 {[%clk 0:02:19]} 19... Bxf5
{[%clk 0:02:13.2]} 20. h5 {[%clk 0:02:01]} 20... Qd7 {[%clk 0:02:10.5]} 21. h6
{[%clk 0:01:57.2]} 21... Bf6 {[%clk 0:02:08.3]} 22. Nh5 {[%clk 0:01:51.5]} 22...
Kh8 {[%clk 0:02:04.5]} 23. Nf2 {[%clk 0:01:46.8]} 23... Nc7 {[%clk 0:01:43.3]}
24. Nxf6 {[%clk 0:01:39.8]} 24... Rxf6 {[%clk 0:01:42.6]} 25. Bxc5 {[%clk
0:01:26.5]} 25... dxc5 {[%clk 0:01:42.4]} 26. Rxc5 {[%clk 0:01:26.9]} 26... Rd6
{[%clk 0:01:31.9]} 27. Ne4 {[%clk 0:01:08.4]} 27... Rxd5 {[%clk 0:01:26.2]} 28.
Rxd5 {[%clk 0:01:08]} 28... Qxd5 {[%clk 0:01:19.4]} 29. Qxd5 {[%clk 0:00:59.3]}
29... Nxd5 {[%clk 0:01:19]} 30. Rh5 {[%clk 0:00:59]} 30... Ne7 {[%clk
0:00:55.2]} 31. Kd2 {[%clk 0:00:46.5]} 31... Kg8 {[%clk 0:00:47.8]} 32. Rg5+
{[%clk 0:00:40.3]} 32... Kf8 {[%clk 0:00:39.3]} 33. b3 {[%clk 0:00:37.8]} 33...
Rc6 {[%clk 0:00:29.1]} 34. Rh5 {[%clk 0:00:30.5]} 34... Rg6 {[%clk 0:00:22.5]}
35. Bc4 {[%clk 0:00:27.8]} 35... Rg2+ {[%clk 0:00:22]} 36. Ke3 {[%clk
0:00:27.8]} 36... Rxa2 {[%clk 0:00:19.1]} 37. Nd6 {[%clk 0:00:28]} 37... Bg6
{[%clk 0:00:15.9]} 38. Rxe5 {[%clk 0:00:28]} 38... Ra1 {[%clk 0:00:15.6]} 39.
Rb5 {[%clk 0:00:25.9]} 39... Nc6 {[%clk 0:00:14.1]} 40. Rc5 {[%clk 0:00:20.6]}
40... Ne7 {[%clk 0:00:12.7]} 41. Rb5 {[%clk 0:00:19.8]} 41... Nc6 {[%clk
0:00:12.8]} 42. Rb6 {[%clk 0:00:20.2]} 42... Ne5 {[%clk 0:00:11.7]} 43. Rb8+
{[%clk 0:00:19.6]} 43... Ke7 {[%clk 0:00:11.7]} 44. Nc8+ {[%clk 0:00:15.7]}
44... Kf6 {[%clk 0:00:11.5]} 45. Rb6+ {[%clk 0:00:14.7]} 45... Kf5 {[%clk
0:00:10.9]} 46. Ne7+ {[%clk 0:00:12.6]} 46... Kg5 {[%clk 0:00:10.9]} 47. Nxg6
{[%clk 0:00:11.9]} 47... Nxg6 {[%clk 0:00:10.6]} 48. Bg8 {[%clk 0:00:08.3]}
48... Kxh6 {[%clk 0:00:07.4]} 49. Rb7 {[%clk 0:00:08.7]} 49... Re1+ {[%clk
0:00:05.8]} 50. Kf2 {[%clk 0:00:08.3]} 50... Rb1 {[%clk 0:00:05.5]} 51. Bxh7
{[%clk 0:00:06.8]} 51... Rxb3 {[%clk 0:00:04.8]} 52. Bg8 {[%clk 0:00:05.6]}
52... Rb2+ {[%clk 0:00:04.7]} 53. Kg3 {[%clk 0:00:06]} 53... Ne5 {[%clk
0:00:04.3]} 54. f4 {[%clk 0:00:06.1]} 54... Nd3 {[%clk 0:00:03.3]} 55. f5 {[%clk
0:00:03.7]} 55... Rb1 {[%clk 0:00:03.3]} 56. f6 {[%clk 0:00:03.3]} 56... Rf1
{[%clk 0:00:03.3]} 57. f7 {[%clk 0:00:02.7]} 57... Ne5 {[%clk 0:00:02.5]} 58.
Rb6+ {[%clk 0:00:02.3]} 58... Kg7 {[%clk 0:00:02.5]} 59. Rb5 {[%clk 0:00:01.7]}
59... Nxf7 {[%clk 0:00:02.7]} 60. Bxf7 {[%clk 0:00:02.6]} 60... Rxf7 {[%clk
0:00:01.1]} 61. Rxa5 {[%clk 0:00:02.9]} 61... Rb7 {[%clk 0:00:01.3]} 62. Kf3
{[%clk 0:00:02.6]} 62... b3 {[%clk 0:00:01.7]} 63. Ra1 {[%clk 0:00:03.3]} 63...
Kf6 {[%clk 0:00:02]} 64. Rb1 {[%clk 0:00:04.2]} 64... Ke5 {[%clk 0:00:02.2]} 65.
Ke3 {[%clk 0:00:05.1]} 65... Kd5 {[%clk 0:00:02.3]} 66. Kd3 {[%clk 0:00:05.7]}
66... Kc5 {[%clk 0:00:02.7]} 67. Kc3 {[%clk 0:00:06.4]} 67... b2 {[%clk
0:00:03.2]} 68. Rxb2 {[%clk 0:00:06.7]} 68... Rxb2 {[%clk 0:00:03.3]} 69. Kxb2
{[%clk 0:00:07.6]} 1/2-1/2